Cogmind - Beta 16 @@@ ROGUE MODE // 2025.10.21 @ 14:16:02 Player: jumpy Result: Destroyed by G-50 Soldier with Heavy Laser Performance ------------- Evolutions (4) 2000 Regions Visited (6) 1200 Robots Destroyed (64) 320 Value Destroyed (1794) 1794 Prototype IDs (5) 100 Alien Tech Used (0) 0 Bonus (40) 40 TOTAL SCORE: 5454 Bonus ------- Follower Combat Kills 40 Cogmind --------- Core Integrity 0/850 Matter 300/300 Energy 100/100 System Corruption 5% Temperature Cool (6) Movement Core (50) Location -6/Extension Parts ------- > --- POWER (1) -------- (None) > --- PROPULSION (6) --- (None) > --- UTILITY (6) ------ (None) > --- WEAPON (2) ------- (None) > --- INVENTORY (5) ---- Improved Deuterium Engine Improved Deuterium Engine Advanced Heat Sink Enhanced Optical Array Plasma Cutter Peak State ------------ > --- POWER ------------ Improved Deuterium Engine > --- PROPULSION ------- Aluminum Leg Aluminum Leg Aluminum Leg Aluminum Leg Carbon-fiber Leg > --- UTILITY ---------- Advanced Heat Sink Medium Storage Unit Targeting Computer Advanced Targeting Computer Improved Light Armor Plating > --- WEAPON ----------- Autogun Autogun > --- INVENTORY -------- Improved Deuterium Engine Improved Deuterium Engine Improved Hover Unit Gravmag System Assault Cannon Rocket Launcher Plasma Cutter Great Maul [Rating: 30] Favorites ----------- Power Improved Deuterium Engine Engine Improved Deuterium Engine Power Core Light Nuclear Core Propulsion Aluminum Leg Leg Aluminum Leg Hover Unit Gravmag System Flight Unit VTOL Module Utility Advanced Targeting Computer Device Advanced Heat Sink Storage Small Storage Unit Processor Advanced Targeting Computer Protection Light Armor Plating Weapon Autogun Energy Cannon Plasma Cannon Ballistic Gun Autogun Ballistic Cannon Assault Cannon Launcher Rocket Launcher Impact Weapon Great Maul Slashing Weapon Chainsword Build | -11 -10 -9 -8 -7 -6 -6 ------- Run | Yrd Mat Mat Mat Fac Fac Ext Slots Evolved 8 | . . 2 2 2 2 . Power . | . . . . . . . Propulsion 4 | . . 1 1 1 1 . Utility 4 | . . 1 1 1 1 . Weapon . | . . . . . . . Parts Attached 54 | 7 1 8 12 14 12 . Power 7 | 2 . 1 2 2 . . Engine 6 | 2 . 1 1 2 . . Core 1 | . . . 1 . . . Reactor . | . . . . . . . Propulsion 18 | 2 . 2 5 6 3 . Treads . | . . . . . . . Leg 12 | 2 . 2 5 3 . . Wheel . | . . . . . . . Hover 4 | . . . . 3 1 . Flight 2 | . . . . . 2 . Utility 15 | 1 1 1 3 4 5 . Device 2 | . . . 1 . 1 . Storage 2 | 1 . . . 1 . . Processor 6 | . . . . 2 4 . Hackware . | . . . . . . . Protection 5 | . 1 1 2 1 . . Artifact . | . . . . . . . Weapon 14 | 2 . 4 2 2 4 . Energy Gun . | . . . . . . . Energy Cannon 2 | . . . . . 2 . Ballistic Gun 8 | 2 . 4 2 . . . Ballistic Cannon 1 | . . . . 1 . . Launcher 1 | . . . . . 1 . Special Weapon . | . . . . . . . Impact Weapon 1 | . . . . 1 . . Slashing Weapon 1 | . . . . . 1 . Piercing Weapon . | . . . . . . . Special Melee Weapon . | . . . . . . . Unidentified Prototypes 3 | . . 1 . . 2 . Parts Lost 22 | . . 2 3 10 7 . Power 3 | . . 1 . 2 . . Propulsion 10 | . . . 2 5 3 . Utility 7 | . . 1 1 2 3 . Weapon 2 | . . . . 1 1 . Highest Loss Streak 4 | . . 1 1 4 4 . To Critical Strikes . | . . . . . . . Average Backups 6 | 2 6 7 7 6 5 5 Power 1 | . 1 1 2 1 2 2 Propulsion 1 | 1 3 3 2 1 . . Utility . | . . . . . 1 2 Weapon 1 | . 1 2 2 2 . . Tool/Special . | . . . . . . . Unused Backups 11 | . . 3 2 2 . 4 Power 5 | . . . 1 2 . 2 Propulsion 2 | . . 1 1 . . . Utility 1 | . . . . . . 1 Weapon 2 | . . 2 . . . . Tool/Special 1 | . . . . . . 1 Average Slot Usage (%) 70 | . 90 86 80 76 43 . Engine 5 | . 14 11 4 6 . . Leg 17 | . 28 33 29 16 . . Hover 4 | . . . . 9 4 . Device 2 | . . . 6 5 . . Storage 7 | . 14 11 9 7 2 . Processor 8 | . . . . 8 21 . Protection 4 | . 5 9 8 3 . . Ballistic Gun 11 | . 28 22 18 8 . . Ballistic Cannon 1 | . . . . 3 . . Impact Weapon 1 | . . . . 2 2 . Peak Build Rating 30 | 6 7 13 22 30 30 2 Average Rating 19 | 4 6 9 18 26 21 2 On Entrance 9 | . 6 7 13 20 17 2 Avg Prop Armor Cover (%) . | . . . . . . . Naked Turns 34 | . . . . . 12 22 Heaviest Build 32 | 14 17 21 24 32 19 . Greatest Support 55 | 20 20 33 48 55 17 3 Greatest Overweight (x) 4 | . . . . 1 4 . Average Overweight (x) . | . . . . . . . Largest Inventory Capacity 10 | 8 8 8 8 10 10 5 Average Capacity 8 | 6 8 8 8 9 6 5 Most Carried 9 | 4 8 8 8 9 6 5 Average Carried 6 | 2 6 7 7 6 5 5 Final Capacity 10 | 8 8 8 8 10 5 5 Final Carried 8 | 4 7 8 8 6 5 5 Class Distribution -------------------- 70% | Mutant 29% | Scavenger-Mutant Dominant Class ---------------- Mutant | -10/Materials Mutant | -9/Materials Scavenger-Mutant | -8/Materials Scavenger-Mutant | -7/Factory Mutant | -6/Factory Mutant | -6/Extension Resources | -11 -10 -9 -8 -7 -6 -6 ----------- Run | Yrd Mat Mat Mat Fac Fac Ext Matter Collected 1987 | 195 140 258 459 747 188 . Remotely . | . . . . . . . Salvage Created 2590 | 125 140 301 520 1117 387 . Parts 124 | 5 10 18 26 40 25 . Haulers Intercepted 3 | . . 1 . 2 . . Recyclers Shooed 2 | . . . . 1 1 . Parts Field Recycled . | . . . . . . . Retrieved Matter . | . . . . . . . Parts Self-Destructed . | . . . . . . . Prevented . | . . . . . . . Parts Restored . | . . . . . . . Kills | -11 -10 -9 -8 -7 -6 -6 ------- Run | Yrd Mat Mat Mat Fac Fac Ext Combat Hostiles Destroyed 46 | . 5 9 8 13 11 . Melee 4 | . . . . . 4 . Guns 32 | . 5 9 8 10 . . Cannons 2 | . . . . 2 . . AOE 7 | . . . . . 7 . Classes Destroyed 10 | 2 2 2 1 3 . . Worker 5 | . . . . 3 2 . Builder 2 | . . . . 1 1 . Tunneler 1 | 1 . . . . . . Hauler 3 | . . 1 . 2 . . Recycler 7 | 1 . . 1 4 1 . Swarmer 17 | . 3 6 . 1 7 . Grunt 19 | . 2 . 5 9 3 . Sentry 6 | . . 3 2 1 . . Hunter 2 | . . . 1 1 . . Programmer 2 | . . . . 1 1 . Best Kill Streak 7 | 2 3 7 4 6 7 . Combat Bots Only 7 | . 3 7 2 6 6 . Max Kills in Single Turn 3 | 1 1 1 1 2 3 . Gunslinging . | . . . . . . . Exploded 3 | . . . . . 3 . Melee 1 | . . . . . 1 . Uniques/NPCs Destroyed . | . . . . . . . Combat | -11 -10 -9 -8 -7 -6 -6 -------- Run | Yrd Mat Mat Mat Fac Fac Ext Hostile Shots Fired 461 | . 25 46 68 177 141 4 Missed 158 | . 9 15 17 67 50 . Hits 303 | . 16 31 51 110 91 4 Projectile 303 | . 16 31 51 110 91 4 Critical Strikes 15 | . . . 4 5 6 . Part Disruptions 1 | . . . . . 1 . Damage Taken 4166 | . 170 308 810 1411 1405 62 Core 1259 | . 39 38 112 208 800 62 Absorbed by Shields 41 | . . . . 26 . 15 Core Remaining (%) 84 | 100 84 90 79 70 . . Volleys Fired 162 | 8 13 29 38 68 6 . Largest 2 | 2 2 2 2 2 1 . Hottest 60 | 40 40 46 46 60 33 . Shots Fired 318 | 16 26 58 76 136 6 . Gun 294 | 16 26 58 76 118 . . Cannon 18 | . . . . 18 . . Launcher 6 | . . . . . 6 . Special . | . . . . . . . Kinetic 312 | 16 26 58 76 136 . . Thermal . | . . . . . . . Explosive 6 | . . . . . 6 . Electromagnetic . | . . . . . . . Robot Hit Streak 28 | 4 6 9 13 28 2 . Robot Miss Streak 4 | 2 1 4 2 4 1 . Penetration Max . | . . . . . . . Secondary Targets 3 | . . . . 3 . . Max Gunslinging Chain 1 | . . . . 1 . . Shots Hit Robots 235 | 10 21 36 52 103 13 . Core Hits 113 | 3 8 13 21 38 30 . Critical Kills . | . . . . . . . Critical Parts Destroyed 8 | . . 3 2 3 . . Critical Strikes 10 | . . 3 2 3 2 . Destroy 6 | . . 3 2 1 . . Smash 2 | . . . . 2 . . Sever 2 | . . . . . 2 . Melee Attacks 31 | . . . . 7 24 . Impact 15 | . . . . 7 8 . Slashing 16 | . . . . . 16 . Piercing . | . . . . . . . Sneak Attacks 6 | . . . . 4 2 . Combat Hostiles . | . . . . . . . Follow-up Attacks . | . . . . . . . Damage Inflicted 5270 | 123 266 539 769 2048 1525 . Guns 2988 | 123 266 539 769 1291 . . Cannons 280 | . . . . 280 . . Explosions 1034 | . . . . . 1034 . Melee 952 | . . . . 470 482 . Ramming 16 | . . . . 7 9 . Kinetic 3268 | 123 266 539 769 1571 . . Thermal . | . . . . . . . Explosive 1034 | . . . . . 1034 . Electromagnetic . | . . . . . . . Impact 666 | . . . . 470 196 . Slashing 286 | . . . . . 286 . Piercing . | . . . . . . . Highest Corruption 5 | . . . . 2 5 5 Average Corruption 3 | . . . . 1 3 5 Corruption Purged . | . . . . . . . Corruption Blocked . | . . . . . . . Effects 27 | . . . . 12 15 . Message Errors 7 | . . . . 3 4 . Matter Fused 6 | . . . . 4 2 . Heat Flow Errors 3 | . . . . 1 2 . Energy Discharges 5 | . . . . 1 4 . Data Loss (minor) 4 | . . . . 2 2 . Data Loss (major) 2 | . . . . 1 1 . Overload Shots . | . . . . . . . Overflow Damage 338 | . . . . 314 24 . Projectiles . | . . . . . . . Explosions 10 | . . . . . 10 . Melee 328 | . . . . 314 14 . Knockbacks 2 | . . . . 2 . . Impact 2 | . . . . 2 . . Kinetic . | . . . . . . . Secondary . | . . . . . . . Self-Inflicted Damage 7 | . . . . 3 4 . Shots . | . . . . . . . Rammed 3 | . . . . 2 1 . Targets Rammed 3 | . . . . 2 1 . Kicked . | . . . . . . . Crushed . | . . . . . . . Highest Temperature 221 | . 2 25 40 221 127 . Average Temperature 27 | . 2 7 22 90 50 . Received Heat Transfer 1236 | . 54 54 378 381 342 27 Siege Activations . | . . . . . . . Martial Activations . | . . . . . . . Shielding Activations . | . . . . . . . Robots Disrupted . | . . . . . . . Combat Hostiles . | . . . . . . . Robots Corrupted 4 | . . . . 4 . . Combat Hostiles 1 | . . . . 1 . . Parts Fried 3 | . . . . 3 . . Impact Corruptions 11 | . . . . 11 . . Robots Melted . | . . . . . . . Combat Hostiles . | . . . . . . . Parts Melted 1 | . . . . . 1 . Heat Transferred . | . . . . . . . Parts Sabotaged . | . . . . . . . Parts Stolen . | . . . . . . . Parts Stripped . | . . . . . . . Power Chain Reactions . | . . . . . . . Alert | -11 -10 -9 -8 -7 -6 -6 ------- Run | Yrd Mat Mat Mat Fac Fac Ext Maximum Alert Level 1 | . . . . . 1 . Low Security (%) 94 | 100 100 100 100 100 79 100 Level 1 5 | . . . . . 20 . Level 2 . | . . . . . . . Level 3 . | . . . . . . . Level 4 . | . . . . . . . Level 5 . | . . . . . . . High Security . | . . . . . . . Max Security . | . . . . . . . Peak Influence 228 | 5 100 176 84 177 228 84 Initial 84 | . . 29 57 16 49 84 Average 80 | . 39 60 55 79 129 82 Influence Increases 1649 | 10 147 276 207 472 537 . Destroy 0b10 Robot/C 940 | . 100 180 160 260 240 . Destroy 0b10 Robot/NC 90 | 10 . 5 5 50 20 . Destroy Leader 226 | . 20 52 40 54 60 . Allied During Kill 4 | . . . . . 4 . Successful Hack 19 | . 12 7 . . . . Disable Machine 15 | . . . . 15 . . Destroy Structure 25 | . . 2 2 3 18 . Lose Combat Pursuer 330 | . 15 30 . 90 195 . Influence Decreases 1575 | 10 77 210 307 407 466 98 Entered New Map 280 | . . 41 79 20 52 88 Time Decay 1055 | 10 77 149 198 287 324 10 Lost Part 220 | . . 20 30 100 70 . Lost Ally 20 | . . . . . 20 . Squads Dispatched 14 | . 1 . 2 6 5 . Investigation 3 | . 1 . . . 2 . Extermination 4 | . . . . 2 2 . Reinforcement 7 | . . . 2 4 1 . Assault . | . . . . . . . Garrison . | . . . . . . . Intercept . | . . . . . . . Searches Triggered . | . . . . . . . Construction Impeded 1 | . . . . . 1 . Haulers Reinforced . | . . . . . . . Active Scanning Responses . | . . . . . . . Cargo Convoy Interrupts . | . . . . . . . Stealth | -11 -10 -9 -8 -7 -6 -6 --------- Run | Yrd Mat Mat Mat Fac Fac Ext Distress Signals 6 | . . . 1 2 2 1 Communications Jammed . | . . . . . . . Distress Signals . | . . . . . . . Times Spotted 103 | . 9 12 12 31 36 3 Peak Tracking Total 9 | . 3 5 3 7 9 4 Tactical Retreats 10 | . 1 1 . 3 5 . Traps | -11 -10 -9 -8 -7 -6 -6 ------- Run | Yrd Mat Mat Mat Fac Fac Ext Traps Triggered 5 | . 1 . . 3 . 1 Indirectly . | . . . . . . . Trap Hack Attempts . | . . . . . . . Triggered . | . . . . . . . Disarmed . | . . . . . . . Reprogrammed . | . . . . . . . Reused . | . . . . . . . Traps Extracted . | . . . . . . . Installed . | . . . . . . . Triggered . | . . . . . . . Machines | -11 -10 -9 -8 -7 -6 -6 ---------- Run | Yrd Mat Mat Mat Fac Fac Ext Machines Disabled 1 | . . . . 1 . . Max in Single Turn 1 | . . . . 1 . . Machines Repaired . | . . . . . . . Machines Dismantled . | . . . . . . . Machines Sabotaged . | . . . . . . . Overloaded Fab Kills . | . . . . . . . Hacking | -11 -10 -9 -8 -7 -6 -6 --------- Run | Yrd Mat Mat Mat Fac Fac Ext Machines Accessed 11 | . 3 2 . 1 5 . Terminals 7 | . 3 2 . . 2 . Fabricators 1 | . . . . . 1 . Repair Stations 2 | . . . . . 2 . Recycling Units . | . . . . . . . Scanalyzers 1 | . . . . 1 . . Garrison Access . | . . . . . . . Total Hacks 26 | . 9 4 . 2 11 . Successful 9 | . 3 3 . 2 1 . Failed 16 | . 6 . . . 10 . Catastrophic 6 | . . . . . 6 . Database Lockouts 1 | . . 1 . . . . Manual 9 | . 5 4 . . . . Terminals 19 | . 9 4 . . 6 . Fabricators 1 | . . . . . 1 . Repair Stations 4 | . . . . . 4 . Recycling Units . | . . . . . . . Scanalyzers 2 | . . . . 2 . . Garrison Access . | . . . . . . . Terminal Hacks 5 | . 3 1 . . 1 . Part Schematic 1 | . 1 . . . . . Robot Analysis 2 | . 1 1 . . . . Prototype ID Bank 1 | . 1 . . . . . Open Door 1 | . . . . . 1 . Fabricator Hacks . | . . . . . . . Repair Station Hacks . | . . . . . . . Recycling Unit Hacks . | . . . . . . . Scanalyzer 2 | . . . . 2 . . Retrieve Study 2 | . . . . 2 . . Garrison Access Hacks . | . . . . . . . Unauthorized Hacks 2 | . . 2 . . . . Terminals 2 | . . 2 . . . . Botnet 1 | . . 1 . . . . Disrupt 1 | . . 1 . . . . Fabricators . | . . . . . . . Repair Stations . | . . . . . . . Recycling Units . | . . . . . . . Scanalyzers . | . . . . . . . Garrison Access . | . . . . . . . Data Cores Recovered . | . . . . . . . Used . | . . . . . . . Hacking Detections 9 | . 3 1 . . 5 . Full Trace Events 2 | . . . . . 2 . Feedback Events . | . . . . . . . Feedback Blocked . | . . . . . . . Robot Schematics Acquired . | . . . . . . . Robots Built . | . . . . . . . Authchips . | . . . . . . . Time . | . . . . . . . Total Robot Build Rating . | . . . . . . . Part Schematics Acquired 1 | . 1 . . . . . Parts Built . | . . . . . . . Authchips . | . . . . . . . Time . | . . . . . . . Total Part Build Rating . | . . . . . . . Part Studies Acquired 2 | . . . . 2 . . Parts Repaired . | . . . . . . . Time . | . . . . . . . Parts Recycled . | . . . . . . . Recycled Matter . | . . . . . . . Retrieved Matter . | . . . . . . . Retrieved Components . | . . . . . . . Parts Scanalyzed . | . . . . . . . Part Schematics Acquired . | . . . . . . . Parts Damaged . | . . . . . . . Bothacking | -11 -10 -9 -8 -7 -6 -6 ------------ Run | Yrd Mat Mat Mat Fac Fac Ext Used RIF Installer . | . . . . . . . Robots Hacked . | . . . . . . . Non-combat . | . . . . . . . Combat . | . . . . . . . Robot Hacks Applied . | . . . . . . . Relay Couplers Released . | . . . . . . . Fabnet Peak Effective % . | . . . . . . . Robots Rewired 1 | . . . . . 1 . Allies Hacked . | . . . . . . . Hacks Repelled . | . . . . . . . Allies | -11 -10 -9 -8 -7 -6 -6 -------- Run | Yrd Mat Mat Mat Fac Fac Ext Total Allies 1 | . . . . . 1 . Largest Group 1 | . . . . . 1 . Highest-Rated Group 29 | . . . . . 29 . Highest-Rated Ally 29 | . . . . . 29 . Total Orders . | . . . . . . . Ally Attacks 8 | . . . . . 8 . Total Damage 135 | . . . . . 135 . Kills 1 | . . . . . 1 . Allies Corrupted . | . . . . . . . Allies Melted . | . . . . . . . Intel | -11 -10 -9 -8 -7 -6 -6 ------- Run | Yrd Mat Mat Mat Fac Fac Ext Active Infowar (turns) 720 | . . . . . 720 . Optics 720 | . . . . . 720 . Robot Analysis Total 2 | . 1 1 . . . . Derelict Logs Recovered . | . . . . . . . Drone Launches . | . . . . . . . Drone Recoveries . | . . . . . . . Exploration | -11 -10 -9 -8 -7 -6 -6 ------------- Run | Yrd Mat Mat Mat Fac Fac Ext Turns Passed 3080 | 115 232 483 414 1019 795 22 Spaces Moved 2202 | 68 148 317 228 655 748 38 Core 228 | 8 . . . . 182 38 Treads . | . . . . . . . Legs 1066 | 60 148 317 228 313 . . Wheels . | . . . . . . . Hover 765 | . . . . 342 423 . Flight 143 | . . . . . 143 . Fastest Speed 50 | 50 120 120 120 52 50 50 Average Speed 103 | 111 120 120 120 114 79 50 Slowest Speed 250 | 120 120 120 120 120 250 50 Overloaded Moves . | . . . . . . . Propulsion Burnouts . | . . . . . . . Robots Hopped . | . . . . . . . Potential Cave-ins 1 | . . . . . 1 . Cave-ins Triggered . | . . . . . . . Exploration Rate (%) 20 | 4 31 31 23 22 21 12 Regions Visited 6 Branch Regions 1 Pre-discovered Areas . | . . . . . . . Known Exits Taken . | . . . . . . . Unknown Exits Taken 6 | 1 1 1 1 1 1 . Scrap Searched . | . . . . . . . Spaces Dug 7 | . . . . . 7 . Terrain Destroyed 21 | . . . . 3 18 . Melee 7 | . . . . . 7 . Projectile 3 | . . . . 3 . . AOE 11 | . . . . . 11 . Terrain Rammed . | . . . . . . . Walls Destroyed . | . . . . . . . Machines Disabled . | . . . . . . . Actions | -11 -10 -9 -8 -7 -6 -6 --------- Run | Yrd Mat Mat Mat Fac Fac Ext Total 2686 | 87 177 370 312 797 902 41 Wait 156 | 2 10 4 17 21 102 . Move 2196 | 67 147 316 227 654 747 38 Hop . | . . . . . . . Pick Up 25 | 3 5 4 6 6 1 . Fast Attach 31 | 6 . 2 5 7 11 . Attach 10 | . 1 1 . 6 2 . Detach 2 | . . . . 1 1 . Swap 18 | 1 . 7 7 3 . . Drop 34 | . 1 7 12 8 6 . Fire 162 | 8 13 29 38 68 6 . Melee 31 | . . . . 7 24 . Ram 3 | . . . . 2 1 . Kick . | . . . . . . . Crush . | . . . . . . . Escape Stasis 17 | . . . . 14 . 3 Rewire 1 | . . . . . 1 . Trap . | . . . . . . . Miscellaneous . | . . . . . . . Route ------- -11/Scrapyard -10/Materials -9/Materials (discovered 2 exits: [*Mat] / [*Min]) -8/Materials -7/Factory (discovered 2 exits: *Fac / [*Sto]) -6/Factory -6/Extension History --------- Turn | Location | Event 4 | -11/Scrapyard | Discovered new exit (range 15) 116 | -11/Scrapyard | Entered Materials 310 | -10/Materials | Build established: Mutant 321 | -10/Materials | Discovered new exit (range 3) 348 | -10/Materials | Entered another Materials area 348 | -9/Materials | Evolved 2 slots: Propulsion x1, Utility x1 409 | -9/Materials | Discovered new exit (range 16) 491 | -9/Materials | Central database locked down 707 | -9/Materials | Destroyed 7 combat bots 716 | -9/Materials | Discovered new exit (range 16) 831 | -9/Materials | Entered another Materials area 831 | -8/Materials | Evolved 2 slots: Propulsion x1, Utility x1 1227 | -8/Materials | Discovered new exit (range 16) 1231 | -8/Materials | Build established: Scavenger-Mutant 1245 | -8/Materials | Entered Factory 1245 | -7/Factory | Evolved 2 slots: Propulsion x1, Utility x1 1754 | -7/Factory | Lost 4 parts (2n1u1w) 1844 | -7/Factory | Lost 4 parts (1p2n1u) 2100 | -7/Factory | Build established: Mutant 2206 | -7/Factory | Discovered new exit (range 12) 2255 | -7/Factory | Discovered new exit (range 16) 2264 | -7/Factory | Entered another Factory area 2264 | -6/Factory | Evolved 2 slots: Propulsion x1, Utility x1 2571 | -6/Factory | Lost 4 parts (2n1u1w) 2593 | -6/Factory | Core integrity fell below 50% 3047 | -6/Factory | Released all parts (6) 3049 | -6/Factory | Core integrity fell below 20% 3055 | -6/Factory | Discovered new exit (range 10) 3059 | -6/Factory | Entered Extension 3081 | -6/Extension | Destroyed by G-50 Soldier with Heavy Laser Last Messages --------------- 03047_ System corrupted: Heat flow error (+124). 03047_ Released VTOL Module. 03047_ Released Chainsword. 03047_ Released Imp. Targeting Computer. 03047_ Released Enh. Optical Array. 03047_ Released Plasma Cannon. 03047_ Released VTOL Module. 03055_ Connecting with Door Terminal... >>Open(Door) Sealed Blast Doors opened. 03055_ EXIT=FOUND LOCATION=UNKNOWN GOAL=ESCAPE 03077_ W-25 Informer sends out distress signal. 03078_ Triggered Stasis Trap. 03078_ A bubble of rippling energy engulfs the area. 03078_ Field strength at 94. 03079_ Field strength at 88. 03080_ Field strength at 77. 03081_ Field strength at 66. Map ----- +----------------------------------------------------+ | | | | | | | | | | | | | | | | | | | | | | | ?????????????????????????????????????????? | | ?????????????????????????????????????????? | | ?????????????????????????????????????????? | | ?????????????????????????????????????????? | | ?????????????????????????????????????????? | | ??########???????????????????????????????? | | ??# #???????????????????????????????? | | ??# * +???????????????????????????????? | | ??# #????????????????? ??????????? | | ??# * #??????????????? w ??????????? | | ??#] * * #?????????????? ?????????? | | ???? ????????????? ??????????? | | ?????#+############## ????????????? | | ?????# g ?????????????? | | ?????# g @ ##????????????????????? | | ?????# #?????????????????????? | | ?????# #?????????????????????? | | ?????# #######?????????????????????? | | ?????# #???????????????????????????? | | ?????# #???????????????????????????? | | ?????# ###???????????????????????????? | | ?????# #?????????????????????????????? | | ?????# #?????????????????????????????? | | ?????# #?????????????????????????????? | | ?????# #?????????????????????????????? | | ?????# #?????????????????????????????? | | ?????# #?????????????????????????????? | | ?????# #?????????????????????????????? | | ?????# #?????????????????????????????? | | ?????# #?????????????????????????????? | | ?????# #?????????????????????????????? | | ?????# #?????????????????????????????? | | ?????# #?????????????????????????????? | | ?????# #####?????????????????????????????? | | ?##### #####?????????????????????????????? | | ?# "" "" #?????????????????????????????? | | ?# " " ##########????????????????????? | | ?# ???????????????????? | | ?# ???????????????????? | +----------------------------------------------------+ Best States ------------- Heat Dissipation 53 Energy Generation 16 Energy Capacity 290 Matter Stores 300 Matter Capacity 300 Sight Range 22 Terrain Scan Density 10 Armor Coverage 150 Evasion (%) 55 Targeting Accuracy 22 Melee Accuracy 5 Item Schematics ----------------- Lrg. Storage Unit | -10/Materials | Hacked Robot Schematics ------------------ None Fabricated ------------ Nothing Repaired ---------- Nothing Studied --------- Gravmag System | -7/Factory | Hacked Aluminum Leg | -7/Factory | Hacked Alien Tech Used ----------------- None Achievements -------------- None Challenges ------------ None Game ------ Seed DefenseGuidanceShredder Manual? 0 Play Time 00:19:07 Cumulative 227.1 hours Start 2025.10.21 @ 13:55:53 End 2025.10.21 @ 14:16:02 Sessions 1 Manual Loads 0 Difficulty Rogue Special Mode None Game No. 531 Rogue 531 Adventurer 0 Explorer 0 Win Type - Total 13 Types 9/0/2/1/1/0/0/0/0/0 Lore% 78 Gallery% 68 Achievement% 43 Wizard Run 0 Options --------- Layout 0 ASCII 0 Keyboard 0 Movement Numpad Keybinds 0 Fullscreen 2 Font 18/Terminus Map View 76x50 Zoom Use 0% Tactical HUD 1 Map Filters NONE Filters SATURATION(100) Steam 1 RUN: 869a31ce-b3ec-4fc9-b4a1-1f0d317bfad6